bitfinex-derivatives/quotes_BTCF0:USTF0_20251129
["timestamp","ask_amount","ask_price","bid_price","bid_amount"]
[1764424906031,0.03374,90781.0,90780.0,0.41801519]
[1764424906328,0.46374,90781.0,90780.0,0.41801519]
[1764424907827,0.46774,90781.0,90780.0,0.41801519]
[1764424909333,0.46774,90781.0,90780.0,0.4312739]
[1764424910829,0.46774,90781.0,90780.0,0.4422867]
[1764424911732,0.46774,90781.0,90780.0,0.4312739]
[1764424912831,0.17774,90781.0,90780.0,0.4312739]
[1764424914537,0.004,90781.0,90780.0,0.4312739]
[1764424915327,0.02087,90781.0,90780.0,0.4312739]
[1764424916336,0.03774,90781.0,90780.0,0.4312739]
[1764424916740,0.004,90781.0,90780.0,0.4312739]
[1764424916940,0.0110125,90783.0,90782.0,0.04463]
[1764424917239,0.01687,90783.0,90782.0,0.04463]
[1764424918031,0.03774,90783.0,90782.0,0.04463]
[1764424924039,0.03390519,90799.0,90798.0,0.05838]
[1764424924244,0.41390519,90799.0,90798.0,0.05838]
[1764424924440,0.53390519,90799.0,90798.0,0.05838]
[1764424925044,0.53390519,90799.0,90798.0,0.0693906]
[1764424926745,0.53690519,90799.0,90798.0,0.05838]
[1764424929538,0.53490519,90799.0,90798.0,0.05838]
[1764424930047,0.53390519,90799.0,90798.0,0.05838]
[1764424930246,0.55883711,90799.0,90798.0,0.05838]
[1764424932450,0.55883711,90799.0,90798.0,0.0693906]
[1764424933551,0.55883711,90799.0,90798.0,0.08204786]
[1764424934350,0.55883711,90799.0,90798.0,0.07103726]
[1764424948460,0.55883711,90799.0,90798.0,0.05728726]
[1764424953357,0.55883711,90799.0,90798.0,0.01265726]
[1764424953564,0.03374,90796.0,90795.0,0.05885]
[1764424953755,0.43767192,90796.0,90795.0,0.05885]
[1764424953957,0.43767192,90796.0,90795.0,0.0451]
[1764424954157,0.55767192,90796.0,90795.0,0.0451]
[1764424954755,0.55867192,90796.0,90795.0,0.0451]
[1764424955758,0.55767192,90796.0,90795.0,0.0451]
[1764424955963,0.55867192,90796.0,90795.0,0.0451]
[1764424957858,0.0110113,90793.0,90792.0,0.0233]
[1764424958060,0.0110113,90793.0,90789.0,0.0233]
[1764424958061,0.82473479,90793.0,90789.0,0.0233]
[1764424958254,0.0447523,90784.0,90783.0,0.05832]
[1764424958574,0.4247523,90784.0,90783.0,0.05832]
[1764424959265,0.41374,90784.0,90783.0,0.05832]
[1764424960568,0.41374,90784.0,90783.0,0.06032]
[1764424962477,0.41374,90784.0,90783.0,0.07294384]
[1764424962856,0.13374,90784.0,90783.0,0.07294384]
[1764424967372,0.0940752,90784.0,90783.0,0.07294384]
[1764424968767,0.0110123,90785.0,90784.0,0.0451]
[1764424968967,0.4510123,90785.0,90784.0,0.0451]
[1764424970266,0.4510123,90785.0,90784.0,0.0461]
[1764424971273,0.1110123,90785.0,90784.0,0.0461]
[1764424972575,0.3610123,90785.0,90784.0,0.0461]
[1764424980468,0.3610123,90785.0,90784.0,0.05972]
[1764424981869,0.35,90785.0,90784.0,0.05972]
[1764424984882,0.0110116,90790.0,90789.0,0.04342]
[1764424985080,0.3410116,90790.0,90789.0,0.04342]
[1764424985766,0.3608,90792.0,90790.0,0.0110116]
[1764424985971,0.3608,90792.0,90791.0,0.04342]
[1764424986880,0.3618,90792.0,90791.0,0.04342]
[1764424987276,0.38599919,90792.0,90791.0,0.04342]
[1764424988076,0.77599919,90792.0,90791.0,0.04342]
[1764424988680,0.0110115,90791.0,90790.0,0.01362]
[1764424988879,0.4210115,90791.0,90790.0,0.01362]
[1764424989082,0.4210115,90791.0,90790.0,0.03503]
[1764424989673,0.4210115,90791.0,90790.0,0.05704]
[1764424990075,0.4220115,90791.0,90790.0,0.05704]
[1764424992977,0.4220115,90791.0,90790.0,0.01362]
[1764424993483,0.44621211,90791.0,90790.0,0.01362]
[1764424993786,0.44621211,90791.0,90788.0,0.01362]
[1764424994086,0.0110117,90789.0,90788.0,0.01362]
[1764424994289,0.46521231,90789.0,90788.0,0.03503]
[1764424997882,0.46521231,90789.0,90788.0,0.05704]
[1764424999384,0.46521231,90789.0,90786.0,0.01362]
[1764424999583,0.0110123,90784.0,90783.0,0.01262384]
[1764424999792,0.0110127,90781.0,90780.0,0.03416519]
[1764425000089,0.0110127,90781.0,90780.0,0.05623519]
[1764425000090,0.3910127,90781.0,90780.0,0.05623519]
[1764425000985,0.3910127,90781.0,90780.0,0.06724799]
[1764425001290,0.3910127,90781.0,90780.0,0.05623519]
[1764425001489,0.3910127,90781.0,90780.0,0.06924799]
[1764425001991,0.3910127,90781.0,90780.0,0.07024799]
[1764425002193,0.38,90781.0,90780.0,0.07024799]
[1764425002594,0.0110119,90788.0,90787.0,0.04324]
[1764425002793,0.13520623,90788.0,90787.0,0.04324]
[1764425003294,0.12419433,90788.0,90787.0,0.04324]
[1764425004787,0.3608,90792.0,90791.0,0.04324]
[1764425005087,0.3608,90792.0,90791.0,0.0542515]
[1764425005294,0.12016519,90799.0,90798.0,0.04324]
[1764425005487,0.55435346,90799.0,90798.0,0.04324]
[1764425007504,0.20435346,90799.0,90798.0,0.0542506]
[1764425007706,0.00316519,90799.0,90798.0,0.0542506]
[1764425013113,0.00316519,90799.0,90798.0,0.06679948]
[1764425013505,0.00316519,90799.0,90798.0,0.07959948]
[1764425017813,0.28316519,90799.0,90798.0,0.07959948]
[1764425021918,0.28116519,90799.0,90798.0,0.07959948]
[1764425023219,0.28016519,90799.0,90798.0,0.07959948]
[1764425023519,0.28116519,90799.0,90798.0,0.07959948]
[1764425029225,0.28116519,90799.0,90798.0,0.06858888]
[1764425033223,0.66614435,90799.0,90798.0,0.04651888]
[1764425033521,0.66614435,90799.0,90798.0,0.02534888]
[1764425033722,0.83946435,90799.0,90792.0,0.03589]
[1764425033916,0.0110113,90793.0,90792.0,0.03589]
[1764425034229,0.3910113,90793.0,90792.0,0.03589]
[1764425034431,0.3910113,90793.0,90792.0,0.05753]
[1764425036522,0.3920113,90793.0,90792.0,0.05753]
[1764425036721,0.3920113,90793.0,90792.0,0.07017871]
[1764425040933,0.381,90793.0,90792.0,0.07017871]
[1764425041127,0.071,90793.0,90792.0,0.07017871]
[1764425041331,0.001,90793.0,90792.0,0.07017871]
[1764425049944,0.041,90793.0,90786.0,0.05602]
[1764425050242,0.011012,90787.0,90786.0,0.05602]
[1764425050437,0.431012,90787.0,90786.0,0.05602]
[1764425050633,0.42,90787.0,90786.0,0.05602]
[1764425060441,0.44424686,90787.0,90786.0,0.05602]
[1764425077056,0.44424686,90787.0,90786.0,0.0128]
[1764425077260,0.0110121,90786.0,90783.0,0.02518526]
[1764425077455,0.0110123,90784.0,90783.0,0.04812526]
[1764425077651,0.39525916,90784.0,90783.0,0.06999526]
[1764425079064,0.39525916,90784.0,90783.0,0.07099526]
[1764425079254,0.3710123,90784.0,90783.0,0.07099526]
[1764425079454,0.39614534,90784.0,90783.0,0.07099526]
[1764425094070,0.39614534,90784.0,90783.0,0.06999526]
[1764425094275,0.39914534,90784.0,90783.0,0.06999526]
[1764425094671,0.40014534,90784.0,90783.0,0.06999526]
[1764425096876,0.04913304,90784.0,90783.0,0.06999526]
[1764425097967,0.02913304,90784.0,90783.0,0.06999526]
[1764425099375,0.04014534,90784.0,90783.0,0.06999526]
[1764425100377,0.02913304,90784.0,90783.0,0.06999526]
[1764425101373,0.00016519,90799.0,90795.0,0.01306]
[1764425101675,0.02514123,90798.0,90797.0,0.0532507]
[1764425102076,0.00016519,90799.0,90798.0,0.04224]
[1764425102968,0.00116519,90799.0,90798.0,0.04224]
[1764425103775,0.00016519,90799.0,90798.0,0.04224]
[1764425103977,0.00016519,90799.0,90798.0,0.04324]
[1764425107471,0.00016519,90799.0,90798.0,0.0554282]
[1764425108069,0.02200519,90799.0,90798.0,0.0554282]
[1764425108270,0.04382519,90799.0,90798.0,0.0554282]
[1764425109281,0.00016519,90799.0,90798.0,0.0554282]
[1764425109482,0.02200519,90799.0,90798.0,0.0564282]
[1764425112384,0.02200519,90799.0,90798.0,0.0544282]
[1764425112578,0.02200519,90799.0,90798.0,0.0554282]
[1764425113484,0.02200519,90799.0,90798.0,0.0684882]
[1764425116980,0.04382519,90799.0,90798.0,0.0684882]
[1764425119884,0.02200519,90799.0,90798.0,0.0684882]
[1764425120982,0.04359519,90799.0,90798.0,0.0684882]
[1764425123589,0.00016519,90799.0,90798.0,0.0684882]
[1764425129989,0.0110098,90806.0,90805.0,0.04615]
[1764425130189,0.17803208,90806.0,90805.0,0.04615]
[1764425130391,0.20016208,90806.0,90805.0,0.04615]
[1764425131091,0.42016208,90806.0,90805.0,0.0571598]
[1764425134596,0.11915228,90806.0,90805.0,0.0571598]
[1764425134901,0.02489228,90806.0,90805.0,0.0571598]
[1764425135494,0.19186203,90815.0,90814.0,0.0571587]
[1764425135695,0.23928468,90815.0,90814.0,0.0571587]
[1764425135902,0.50928468,90815.0,90814.0,0.0571587]
[1764425136494,0.51028468,90815.0,90814.0,0.0571587]
[1764425136897,0.21028468,90815.0,90814.0,0.0571587]
[1764425137604,0.33028468,90815.0,90814.0,0.0571587]
[1764425137801,0.33328468,90815.0,90814.0,0.0571587]
[1764425138706,0.33328468,90815.0,90814.0,0.04615]
[1764425141395,0.33328468,90815.0,90814.0,0.05811393]
[1764425141806,0.34429328,90815.0,90814.0,0.05811393]
[1764425142200,0.33328468,90815.0,90814.0,0.05811393]
[1764425142401,0.34429328,90815.0,90814.0,0.05811393]
[1764425143509,0.33328468,90815.0,90814.0,0.05811393]
[1764425143894,0.34429328,90815.0,90814.0,0.05811393]
[1764425144805,0.69429328,90815.0,90814.0,0.05811393]
[1764425146610,0.68328468,90815.0,90814.0,0.06912263]
[1764425148605,0.68328468,90815.0,90814.0,0.05811393]
[1764425149202,0.68328468,90815.0,90814.0,0.01196393]
[1764425149508,0.02213,90811.0,90810.0,0.0342491]
[1764425149704,0.85426,90811.0,90810.0,0.0571591]
[1764425149898,0.85426,90811.0,90810.0,0.0700191]
[1764425149899,0.87911949,90811.0,90810.0,0.0700191]
[1764425150806,0.88111949,90811.0,90810.0,0.0700191]
[1764425156208,0.49111949,90811.0,90810.0,0.0700191]
[1764425158824,0.46898949,90811.0,90810.0,0.0700191]
[1764425160009,0.49111949,90811.0,90810.0,0.0700191]
[1764425161214,0.49111949,90811.0,90810.0,0.0342491]
[1764425161421,0.92111949,90811.0,90810.0,0.0110091]
[1764425161915,0.92111949,90811.0,90810.0,0.0549791]
[1764425162108,0.57111949,90811.0,90810.0,0.0549791]
[1764425167917,0.90111949,90811.0,90810.0,0.0549791]
[1764425168318,0.90111949,90811.0,90810.0,0.0110091]
[1764425168621,0.02224,90790.0,90789.0,0.40477]
[1764425168915,0.87224,90790.0,90789.0,0.40477]
[1764425169924,0.87224,90790.0,90789.0,0.40877]
[1764425170221,0.87224,90790.0,90789.0,0.40977]
[1764425176728,0.87224,90790.0,90789.0,0.3658]
[1764425177424,0.87224,90790.0,90789.0,0.38748]
[1764425178032,0.87224,90790.0,90789.0,0.02668]
[1764425178330,0.87224,90790.0,90789.0,0.04897]
[1764425183136,0.87224,90790.0,90789.0,0.0599817]
[1764425183434,0.87224,90790.0,90789.0,0.04897]
[1764425193634,0.87224,90790.0,90789.0,0.005]
[1764425194031,0.87224,90790.0,90762.0,0.07888827]
[1764425194032,0.01224,90780.0,90762.0,0.07888827]
[1764425194334,0.01224,90780.0,90760.0,0.01316]
[1764425194335,0.0232544,90767.0,90760.0,0.01316]
[1764425194533,0.8032544,90767.0,90760.0,0.01316]
[1764425195134,0.8032544,90767.0,90766.0,0.04486544]
[1764425195329,0.80335886,90767.0,90766.0,0.04486544]
[1764425195643,0.80435886,90767.0,90766.0,0.04486544]
[1764425196630,0.0232555,90758.0,90757.0,0.02254078]
[1764425196835,0.8632555,90758.0,90757.0,0.00011078]
[1764425197546,0.8632555,90758.0,90757.0,0.02254078]
[1764425197743,0.8672555,90758.0,90757.0,0.00011078]
[1764425198236,0.8632555,90758.0,90757.0,0.00011078]
[1764425198436,0.8682555,90758.0,90757.0,0.00011078]
[1764425199545,0.8672555,90758.0,90757.0,0.00011078]
[1764425200331,0.8632555,90758.0,90757.0,0.00011078]
[1764425200536,0.8672555,90758.0,90757.0,0.00011078]
[1764425203444,0.8632555,90758.0,90757.0,0.00011078]
[1764425203646,0.8662555,90758.0,90757.0,0.00011078]
[1764425204132,0.8672555,90758.0,90757.0,0.00011078]
[1764425204337,0.8672555,90758.0,90757.0,0.04470078]
[1764425204537,1.0408155,90758.0,90757.0,0.04470078]
[1764425205143,0.6208155,90758.0,90757.0,0.04470078]
[1764425205447,0.4872555,90758.0,90757.0,0.04470078]
[1764425206247,0.4832555,90758.0,90757.0,0.04470078]
[1764425206444,0.4872555,90758.0,90757.0,0.04470078]
[1764425206849,0.4852555,90758.0,90757.0,0.04470078]
[1764425207044,0.422,90758.0,90757.0,0.40550078]
[1764425207442,0.43224,90758.0,90757.0,0.40550078]
[1764425207643,0.43424,90758.0,90757.0,0.40550078]
[1764425208350,0.42812,90758.0,90757.0,0.40550078]
[1764425208949,0.43424,90758.0,90757.0,0.40550078]
[1764425210450,0.01424,90758.0,90757.0,0.40550078]
[1764425210649,0.21424,90758.0,90757.0,0.40550078]
[1764425213849,0.21424,90758.0,90757.0,0.4173073]
[1764425214944,0.39424,90758.0,90757.0,0.4173073]
[1764425217245,0.17424,90758.0,90757.0,0.4173073]
[1764425217444,0.162,90758.0,90757.0,0.4173073]
[1764425220051,0.002,90758.0,90757.0,0.4173073]
[1764425220246,0.0011651,90758.0,90757.0,0.4173073]
[1764425221360,0.0011651,90758.0,90757.0,0.5173073]
[1764425221951,0.01234446,90767.0,90766.0,0.04335]
[1764425222148,0.48234446,90767.0,90766.0,0.04335]
[1764425223050,0.48234446,90767.0,90766.0,0.0543645]
[1764425223250,0.48434446,90767.0,90766.0,0.0543645]
[1764425226863,0.40822446,90767.0,90766.0,0.0543645]
[1764425227854,0.41434446,90767.0,90766.0,0.0543645]
[1764425229956,0.002,90767.0,90766.0,0.0543645]
[1764425230161,0.362,90767.0,90766.0,0.0543645]
[1764425241868,0.362,90767.0,90766.0,0.4151645]
[1764425251281,0.3730144,90767.0,90766.0,0.4151645]
[1764425251889,0.3730144,90767.0,90766.0,0.40415]
[1764425252093,0.3730144,90767.0,90766.0,0.4151645]
[1764425257390,0.362,90767.0,90766.0,0.4151645]
[1764425257698,0.3730144,90767.0,90766.0,0.4151645]
[1764425258299,0.362,90767.0,90766.0,0.4151645]
[1764425268606,0.362,90767.0,90766.0,0.0543645]
[1764425268806,0.362,90767.0,90766.0,0.4151645]
[1764425283914,0.362,90767.0,90766.0,0.0543645]
[1764425284114,0.362,90767.0,90766.0,0.4151645]
[1764425285616,0.362,90767.0,90766.0,0.3933145]
[1764425285918,0.362,90767.0,90766.0,0.4162745]
[1764425286413,0.762,90767.0,90766.0,0.40526]
[1764425286615,0.7869122,90767.0,90766.0,0.40526]
[1764425288405,0.7869122,90767.0,90766.0,0.3823]
[1764425294117,0.7869122,90767.0,90766.0,0.3608]
[1764425295421,0.7869122,90767.0,90766.0,0.38388]
[1764425296612,0.7869122,90767.0,90766.0,0.40684]
[1764425297814,0.7869122,90767.0,90766.0,0.4178545]
[1764425298716,0.7869122,90767.0,90766.0,0.40684]
[1764425298919,0.7869122,90767.0,90766.0,0.4178545]
[1764425299829,0.7869122,90767.0,90766.0,0.40684]
[1764425304930,0.7869122,90767.0,90766.0,0.04604]
[1764425316538,0.5769122,90767.0,90766.0,0.04604]
[1764425317537,0.3869122,90767.0,90766.0,0.04604]
[1764425320142,0.0669122,90767.0,90766.0,0.04604]
[1764425320347,0.042,90767.0,90766.0,0.04604]
[1764425324939,0.042,90767.0,90766.0,0.14604]
[1764425325343,0.042,90767.0,90766.0,0.04604]
[1764425327341,0.042,90767.0,90766.0,0.14604]
[1764425327747,0.322,90767.0,90766.0,0.14604]
[1764425330249,0.002,90767.0,90766.0,0.14604]
[1764425330438,0.042,90767.0,90766.0,0.14604]
[1764425333647,0.042,90767.0,90766.0,0.86764]
[1764425338648,0.292,90767.0,90766.0,0.86764]
[1764425338844,0.292,90767.0,90766.0,0.76764]
[1764425340854,0.292,90767.0,90766.0,0.94108]
[1764425341247,0.292,90767.0,90766.0,0.76764]
[1764425341447,0.292,90767.0,90766.0,0.94108]
[1764425342250,0.292,90767.0,90766.0,0.58028]
[1764425365574,0.292,90767.0,90766.0,0.59289]
[1764425365778,0.052,90767.0,90766.0,0.59289]
[1764425367374,0.002,90767.0,90766.0,0.59289]
[1764425367577,0.002,90767.0,90766.0,1.00289]
[1764425368273,0.002,90767.0,90766.0,1.10289]
[1764425370683,0.002,90767.0,90766.0,0.71289]
[1764425371179,0.002,90767.0,90766.0,0.91289]
[1764425371978,0.002,90767.0,90766.0,1.01289]
[1764425373277,0.002,90767.0,90766.0,0.91289]
[1764425373777,0.002,90767.0,90766.0,0.9920877]
[1764425374282,0.002,90767.0,90766.0,1.0920877]
[1764425375380,0.002,90767.0,90766.0,1.01289]
[1764425376284,0.002,90767.0,90766.0,1.09207297]
[1764425376788,0.002,90767.0,90766.0,1.01289]
[1764425379194,0.002,90767.0,90766.0,1.09205047]
[1764425383695,0.002,90767.0,90766.0,1.01289]
[1764425384579,0.002,90767.0,90766.0,1.37369]
[1764425384782,0.002,90767.0,90766.0,0.95369]
[1764425389282,0.002,90767.0,90766.0,1.03284237]
[1764425392095,0.002,90767.0,90766.0,1.03280237]
[1764425393803,0.002,90767.0,90766.0,0.95365]
[1764425395597,0.002,90767.0,90766.0,0.59285]
[1764425403195,0.362,90767.0,90766.0,0.59285]
[1764425404402,0.362,90767.0,90766.0,0.41945]
[1764425404802,0.76720604,90767.0,90766.0,0.3608]
[1764425405304,0.76720604,90767.0,90766.0,0.38197]
[1764425405898,0.76720604,90767.0,90766.0,0.4032]
[1764425406510,0.742,90767.0,90766.0,0.4032]
[1764425419618,0.742,90767.0,90766.0,0.3608]
[1764425421718,0.742,90767.0,90762.0,0.05861]
[1764425422909,0.0110149,90763.0,90762.0,0.05861]
[1764425423109,0.8310149,90763.0,90762.0,0.05861]
[1764425424117,0.8320149,90763.0,90762.0,0.05861]
[1764425431216,0.8320149,90763.0,90761.0,0.3608]
[1764425431416,0.8320149,90763.0,90761.0,0.38318]
[1764425431617,0.8320149,90763.0,90761.0,0.3608]
[1764425432008,0.8320149,90763.0,90761.0,0.38318]
[1764425432212,0.8320149,90763.0,90761.0,0.40473]
[1764425432617,0.8320149,90763.0,90761.0,0.04393]
[1764425432915,0.8310149,90763.0,90761.0,0.04393]
[1764425433120,0.0110155,90758.0,90757.0,0.0119173]
[1764425433323,0.83609461,90758.0,90757.0,0.0558473]
[1764425433725,0.8110155,90758.0,90757.0,0.0558473]
[1764425434517,0.83611026,90758.0,90757.0,0.0558473]
[1764425441330,0.8110155,90758.0,90757.0,0.0558473]
[1764425443432,0.8110155,90758.0,90757.0,0.0342973]
[1764425443631,0.83661121,90758.0,90757.0,0.0119173]
[1764425444025,0.83661121,90758.0,90757.0,0.0342973]
[1764425444526,0.83661121,90758.0,90757.0,0.00011078]
[1764425444722,0.0110176,90750.0,90749.0,0.3608]
[1764425444929,0.5010176,90750.0,90749.0,0.3608]
[1764425445127,0.5010176,90750.0,90749.0,0.38318]
[1764425445427,0.8010176,90750.0,90749.0,0.39421908]
[1764425446128,0.8010176,90750.0,90749.0,0.41576908]
[1764425446327,0.8010176,90750.0,90749.0,0.41876908]
[1764425446824,0.8010176,90750.0,90749.0,0.05796908]
[1764425447028,0.82661036,90750.0,90749.0,0.003]
[1764425447729,0.82661036,90750.0,90740.0,0.3608]
[1764425447730,0.0110187,90741.0,90740.0,0.40473]
[1764425447929,0.0110187,90741.0,90732.0,0.0356]
[1764425447930,0.0110196,90733.0,90732.0,0.0356]
[1764425448231,0.7510196,90733.0,90732.0,0.0356]
[1764425448432,0.8710196,90733.0,90732.0,0.0356]
[1764425449422,0.8710196,90733.0,90732.0,0.06315]
[1764425449822,0.8710196,90733.0,90732.0,0.05715]
[1764425450027,0.8710196,90733.0,90732.0,0.06215]
[1764425450827,0.49,90733.0,90732.0,0.0731697]
[1764425455131,0.49,90733.0,90732.0,0.06215]
[1764425456338,0.49,90733.0,90732.0,0.0731698]
[1764425456829,0.49,90733.0,90732.0,0.06215]
[1764425465840,0.00016528,90750.0,90749.0,0.04299]
[1764425466140,0.78016528,90750.0,90749.0,0.04299]
[1764425466342,0.90016528,90750.0,90749.0,0.04299]
[1764425468036,0.90016528,90750.0,90749.0,0.02172]
[1764425468239,0.90016528,90750.0,90749.0,0.04299]
[1764425470341,0.92572262,90750.0,90749.0,0.04299]
[1764425471044,0.90016528,90750.0,90749.0,0.04299]
[1764425471245,0.92572408,90750.0,90749.0,0.04299]
[1764425472750,0.62572408,90750.0,90749.0,0.04299]
[1764425479346,0.55572408,90750.0,90749.0,0.04299]
[1764425479551,0.53016528,90750.0,90749.0,0.04299]
[1764425495153,0.0110177,90749.0,90745.0,0.01159511]
[1764425495348,0.5210177,90749.0,90745.0,0.05762511]
[1764425495652,0.5210177,90749.0,90745.0,0.04603]
[1764425495853,0.12,90748.0,90747.0,0.0709179]
[1764425496048,0.59,90748.0,90747.0,0.0709179]
[1764425497251,0.59,90748.0,90747.0,0.0719179]
[1764425499253,0.47,90748.0,90747.0,0.0609]
[1764425500357,0.80555501,90748.0,90747.0,0.001]
[1764425503849,0.80555501,90748.0,90747.0,0.04703]
[1764425504051,0.52555501,90748.0,90747.0,0.04703]
[1764425504259,0.82555501,90748.0,90747.0,0.04703]
[1764425505154,0.58555501,90748.0,90747.0,0.04703]
[1764425505361,0.76555501,90748.0,90747.0,0.04703]
[1764425507257,0.76555501,90748.0,90747.0,0.001]
[1764425511368,0.0110187,90741.0,90740.0,0.01129694]
[1764425511668,0.0110187,90741.0,90737.0,0.3718191]
[1764425511669,0.8210187,90741.0,90739.0,0.0110188]
[1764425511863,0.8210187,90741.0,90739.0,0.0338288]
[1764425512166,0.8210187,90741.0,90740.0,0.0599]
[1764425512368,0.9410187,90741.0,90740.0,0.0599]
[1764425513470,0.9410187,90741.0,90740.0,0.0619]
[1764425514857,0.6410187,90741.0,90740.0,0.0619]
[1764425515262,0.66658541,90741.0,90740.0,0.0619]
[1764425516367,0.88658541,90741.0,90740.0,0.0619]
[1764425517368,0.52658541,90741.0,90740.0,0.0619]
[1764425520566,0.96658541,90741.0,90740.0,0.0619]
[1764425523876,0.9410187,90741.0,90740.0,0.0619]
[1764425525784,0.95540532,90741.0,90740.0,0.0619]
[1764425536385,0.72540532,90741.0,90740.0,0.0619]
[1764425536983,0.51540532,90741.0,90740.0,0.0619]
[1764425538686,0.49,90741.0,90740.0,0.0619]
[1764425544602,0.37,90741.0,90740.0,0.0619]
[1764425550505,0.12,90748.0,90747.0,0.05744]
[1764425550710,0.12,90748.0,90747.0,0.0684579]
[1764425552112,0.00016528,90750.0,90749.0,0.04365]
[1764425552407,0.32016528,90750.0,90749.0,0.04365]
[1764425553609,0.32116528,90750.0,90749.0,0.04365]
[1764425554010,0.01116528,90750.0,90749.0,0.04365]
[1764425554309,0.40116528,90750.0,90749.0,0.04365]
[1764425557711,0.09116528,90750.0,90749.0,0.04365]
[1764425559517,0.32116528,90750.0,90749.0,0.04365]
[1764425560408,0.09116528,90750.0,90749.0,0.04365]
[1764425561120,0.36116528,90750.0,90749.0,0.04365]
[1764425565718,0.00116528,90750.0,90749.0,0.04365]
[1764425565916,0.09116528,90750.0,90749.0,0.04365]
[1764425568023,0.38116528,90750.0,90749.0,0.04365]
[1764425574821,0.38116528,90750.0,90749.0,0.40445]
[1764425576232,0.38116528,90750.0,90749.0,0.04365]
[1764425576634,0.38116528,90750.0,90749.0,0.40445]
[1764425581937,0.81116528,90750.0,90747.0,0.01122609]
[1764425582130,0.52116528,90750.0,90747.0,0.0666578]
[1764425582940,0.52116528,90750.0,90747.0,0.0110178]
[1764425583431,0.52116528,90750.0,90747.0,0.0323178]
[1764425583630,0.52016528,90750.0,90747.0,0.0323178]
[1764425584137,0.38016528,90750.0,90747.0,0.0666578]
[1764425585634,0.0110177,90749.0,90747.0,0.05564]
[1764425585836,0.38,90749.0,90747.0,0.0666578]
[1764425597666,0.0110178,90748.0,90747.0,0.05564]
[1764425597864,0.3910178,90748.0,90747.0,0.05564]
[1764425598465,0.38,90748.0,90747.0,0.05564]
[1764425604958,0.00016528,90750.0,90749.0,0.04458]
[1764425605158,0.37016528,90750.0,90749.0,0.04458]
[1764425605558,0.03016528,90750.0,90749.0,0.04458]
[1764425605764,0.00016528,90750.0,90749.0,0.12384163]
[1764425605967,0.12,90760.0,90759.0,0.05794]
[1764425606263,0.48,90760.0,90759.0,0.41874]
[1764425606654,0.48,90760.0,90759.0,0.4297565]
[1764425607358,0.24,90760.0,90759.0,0.4297565]
[1764425607861,0.1198892,90760.0,90759.0,0.4297565]
[1764425608164,0.1228892,90760.0,90759.0,0.4297565]
[1764425609069,0.1228892,90760.0,90759.0,0.5297565]
[1764425609070,0.1198892,90760.0,90759.0,0.5297565]
[1764425609268,0.432,90760.0,90759.0,0.4297565]
[1764425609761,0.202,90760.0,90759.0,0.4297565]
[1764425610866,0.002,90760.0,90759.0,0.4297565]
[1764425611070,0.432,90760.0,90759.0,0.4297565]
[1764425613461,0.432,90760.0,90759.0,0.44088197]
[1764425651903,0.012,90760.0,90759.0,0.44088197]
[1764425653703,0.422,90760.0,90759.0,0.44088197]
[1764425659404,0.002,90760.0,90759.0,0.54088197]
[1764425659904,0.002,90760.0,90759.0,0.44088197]
[1764425668708,0.002,90760.0,90759.0,0.54088197]
[1764425672218,0.002,90760.0,90759.0,0.44088197]
[1764425673409,0.002,90760.0,90759.0,0.54088197]
[1764425673915,0.12,90768.0,90767.0,0.0539955]
[1764425674118,0.02488134,90768.0,90767.0,0.2273955]
[1764425674412,0.00016528,90769.0,90768.0,0.05655]
[1764425674618,0.3608,90787.0,90775.0,0.04298]
[1764425674811,0.74568161,90776.0,90775.0,0.04298]
[1764425675206,0.86568161,90776.0,90775.0,0.0539945]
[1764425675718,0.36,90776.0,90775.0,0.0539945]
[1764425675916,0.367,90776.0,90775.0,0.0539945]
[1764425677113,0.368,90776.0,90775.0,0.0539945]
[1764425682420,0.368,90776.0,90775.0,0.06523303]
[1764425685322,0.008,90776.0,90775.0,0.06523303]
[1764425691029,0.008,90776.0,90775.0,0.16523303]
[1764425691430,0.00057585,90776.0,90775.0,0.16523303]
[1764425700727,0.00057585,90776.0,90775.0,0.06523303]
[1764425702226,0.00057585,90776.0,90775.0,0.23859303]
[1764425714048,0.00057585,90776.0,90775.0,0.31793553]
[1764425715247,0.00057585,90776.0,90775.0,0.23859303]
[1764425726453,0.00057585,90776.0,90775.0,0.33859303]
[1764425738460,0.00016528,90785.0,90784.0,0.0555734]
[1764425738652,0.00016528,90785.0,90784.0,0.2289334]
[1764425741364,0.00016528,90785.0,90784.0,0.2299334]
[1764425742866,0.00016528,90785.0,90784.0,0.3299334]
[1764425745965,0.00016528,90785.0,90784.0,0.2299334]
[1764425748071,0.00016528,90785.0,90784.0,0.0565734]
[1764425748368,0.00016528,90785.0,90784.0,0.3299334]
[1764425748569,0.00016528,90785.0,90784.0,0.2299334]
[1764425749872,0.00016528,90785.0,90784.0,0.0565734]
[1764425750071,0.00016528,90785.0,90784.0,0.2299334]
[1764425753973,0.00016528,90785.0,90784.0,0.30917332]
[1764425754374,0.00016528,90785.0,90784.0,0.2299334]
[1764425762076,0.00016528,90785.0,90784.0,0.0565734]
[1764425762276,0.00016528,90785.0,90784.0,0.2298934]
[1764425763182,0.00016528,90785.0,90784.0,0.29818845]
[1764425763778,0.00016528,90785.0,90784.0,0.12486845]
[1764425763979,0.00016528,90785.0,90784.0,0.04556]
[1764425764378,0.00016528,90785.0,90784.0,0.12486885]
[1764425764583,0.00016528,90785.0,90784.0,0.04556]
[1764425766484,0.45016528,90785.0,90784.0,0.04556]
[1764425766684,0.45016528,90785.0,90784.0,0.001]
[1764425766881,0.47481316,90785.0,90784.0,0.001]
[1764425767583,0.48582656,90785.0,90784.0,0.001]
[1764425768083,0.48582656,90785.0,90780.0,0.0684739]
[1764425768389,0.0110137,90783.0,90780.0,0.0684739]
[1764425768581,0.4310137,90783.0,90780.0,0.0684739]
[1764425769785,0.42,90783.0,90780.0,0.0684739]
[1764425769989,0.42,90783.0,90780.0,0.0694739]
[1764425770489,0.42,90783.0,90780.0,0.0684739]
[1764425770688,0.42,90783.0,90780.0,0.0694739]
[1764425776902,0.0110137,90782.0,90780.0,0.05846]
[1764425777205,0.4110137,90782.0,90780.0,0.001]
[1764425777593,0.02460416,90781.0,90780.0,0.001]
[1764425777791,0.47460416,90781.0,90780.0,0.001]
[1764425782912,0.0110144,90776.0,90775.0,0.01140381]